{"text_format":"1","workbook":"xlsx","n_sheets":2,"sheets":["MODELE","LISTE"],"not_rendered":{"charts":0,"images":3,"macros":1,"external_links":0,"defined_names":3,"comments":1,"pivot_tables":0},"unopened":[],"bounds":{"document_bytes":16777216,"sheet_cells":100000,"rows_first":2000,"rows_last":500,"rows_between":2000,"halvings":0,"cell_chars":16384,"cell_head_chars":4096},"cells_cut":0,"cells_raw":0,"read":"whole","date_system":"1900"}

{"sheet":"MODELE","index":0,"n_rows":44,"n_cols":27,"rows_kept":44,"cut":false,"hidden":false,"merged":[[40,9,40,10],[40,13,40,15],[35,11,35,13],[35,14,35,15],[35,16,35,17],[36,11,36,13],[36,14,36,15],[36,16,36,17],[37,11,37,13],[37,14,37,15],[37,16,37,17],[38,11,38,13],[38,16,38,17],[36,9,36,10],[37,9,37,10],[38,9,38,10],[26,19,26,26],[28,0,28,2],[28,19,28,21],[32,11,32,17],[33,11,33,17],[30,1,30,3],[30,9,30,10],[30,20,30,22],[28,3,28,7],[28,22,28,26],[26,0,26,7],[26,10,26,17],[23,0,23,7],[23,10,23,17],[23,19,23,26],[24,0,25,7],[24,9,24,10],[24,11,24,17],[24,19,24,26],[25,9,25,11],[25,12,25,17],[3,19,3,26],[5,0,5,2],[5,19,5,21],[9,11,9,17],[17,9,17,10],[17,13,17,15],[12,11,12,13],[12,14,12,15],[12,16,12,17],[13,11,13,13],[13,14,13,15],[13,16,13,17],[14,11,14,13],[14,14,14,15],[14,16,14,17],[15,11,15,13],[7,1,7,3],[7,9,7,10],[7,20,7,22],[0,0,0,7],[0,10,0,17],[0,19,0,26],[1,0,2,7],[1,9,1,10],[1,11,1,17],[1,19,1,26],[2,9,2,11],[2,12,2,17],[5,3,5,7],[5,22,5,26],[3,0,3,7],[3,10,3,17],[8,9,8,10],[9,9,9,10],[10,9,10,10],[7,11,7,17],[10,11,10,17],[8,11,8,17],[38,14,38,15],[31,9,31,10],[32,9,32,10],[33,9,33,10],[13,9,13,10],[14,9,14,10],[15,9,15,10],[30,11,30,17],[31,11,31,17],[15,16,15,17],[15,14,15,15]]}
["Concours",null,null,null,null,null,null,null,null,"Nom :"]
["Campagne",null,null,null,null,null,null,null,null,"Prénom:"]
[null,null,null,null,null,null,null,null,null,"N° Licence :"]
["2000-01-01",null,null,null,null,null,null,null,null,"Club :"]
[]
["Prénom :",null,null,{"$f":"IF(L2=0, \" \", L2)","v":" "},null,null,null,null,null,null,null,null,null,null,null,null,null,null,null,"Prénom :",null,null,{"$f":"IF(L2=0, \" \", L2)","v":" "}]
[]
[null,"Flèches",null,null,"Volée","Total",6,5,null,"Peloton :",null,null,null,null,null,null,null,null,null,null,"Flèches",null,null,"Volée","Total",6,5]
[1,null,null,null,null,null,null,null,null,"Arc :",null,null,null,null,null,null,null,null,null,13]
[{"$f":"A9+1","v":2},null,null,null,null,null,null,null,null,"Cat. âge :",null,null,null,null,null,null,null,null,null,{"$f":"T9+1","v":14}]
[{"$f":"A10+1","v":3},null,null,null,null,null,null,null,null,"Genre :",null,null,null,null,null,null,null,null,null,{"$f":"T10+1","v":15}]
[4,null,null,null,null,null,null,null,null,null,null,null,null,null,null,null,null,null,null,16]
[5,null,null,null,null,null,null,null,null,null,null,"Score",null,null,"nb 5",null,"nb 6",null,null,17]
[6,null,null,null,null,null,null,null,null,"Serie 1",null,null,null,null,null,null,null,null,null,18]
[7,null,null,null,null,null,null,null,null,"Série 2",null,null,null,null,null,null,null,null,null,19]
[8,null,null,null,null,null,null,null,null,"Total :",null,null,null,null,null,null,null,null,null,20]
[9,null,null,null,null,null,null,null,null,null,null,null,null,null,null,null,null,null,null,21]
[10,null,null,null,null,null,null,null,null,"Archer :",null,null,null,"Marqueur:",null,null,null,null,null,22]
[11,null,null,null,null,null,null,null,null,null,null,null,null,null,null,null,null,null,null,23]
[12,null,null,null,null,null,null,null,null,null,null,null,null,null,null,null,null,null,null,24]
[null,null,null,null,"Total 12 cibles",null,null,null,null,null,null,null,null,null,null,null,null,null,null,null,null,null,null,"Total 12 cibles"]
[]
[]
["Concours",null,null,null,null,null,null,null,null,"Nom :",{"$f":"IF(K1=0, \" \", K1)","v":" "}]
[{"$f":"A2","v":"Campagne"},null,null,null,null,null,null,null,null,"Prénom:",null,{"$f":"IF(L2=0, \" \", L2)","v":" "}]
[null,null,null,null,null,null,null,null,null,"N° Licence :",null,null,{"$f":"IF(M3=0, \" \", M3)","v":" "}]
[{"$f":"A4","v":"2000-01-01"},null,null,null,null,null,null,null,null,"Club :",{"$f":"IF(K4=0, \" \", K4)","v":" "}]
[]
["Prénom :",null,null,{"$f":"IF(L2=0, \" \", L2)","v":" "},null,null,null,null,null,null,null,null,null,null,null,null,null,null,null,"Prénom :",null,null,{"$f":"IF(L2=0, \" \", L2)","v":" "}]
[]
[null,"Flèches",null,null,"Volée","Total",6,5,null,"Peloton :",null,{"$f":"IF(L8=0, \" \", L8)","v":" "},null,null,null,null,null,null,null,null,"Flèches",null,null,"Volée","Total",6,5]
[1,null,null,null,null,null,null,null,null,"Arc :",null,{"$f":"IF(L9=0, \" \", L9)","v":" "},null,null,null,null,null,null,null,13]
[{"$f":"A32+1","v":2},null,null,null,null,null,null,null,null,"Cat. âge :",null,{"$f":"IF(L10=0, \" \", L10)","v":" "},null,null,null,null,null,null,null,{"$f":"T32+1","v":14}]
[{"$f":"A33+1","v":3},null,null,null,null,null,null,null,null,"Genre :",null,{"$f":"IF(L11=0, \" \", L11)","v":" "},null,null,null,null,null,null,null,{"$f":"T33+1","v":15}]
[4,null,null,null,null,null,null,null,null,null,null,null,null,null,null,null,null,null,null,16]
[5,null,null,null,null,null,null,null,null,null,null,"Score",null,null,"nb 5",null,"nb 6",null,null,17]
[6,null,null,null,null,null,null,null,null,"Serie 1",null,null,null,null,null,null,null,null,null,18]
[7,null,null,null,null,null,null,null,null,"Série 2",null,null,null,null,null,null,null,null,null,19]
[8,null,null,null,null,null,null,null,null,"Total :",null,null,null,null,null,null,null,null,null,20]
[9,null,null,null,null,null,null,null,null,null,null,null,null,null,null,null,null,null,null,21]
[10,null,null,null,null,null,null,null,null,"Archer :",null,null,null,"Marqueur:",null,null,null,null,null,22]
[11,null,null,null,null,null,null,null,null,null,null,null,null,null,null,null,null,null,null,23]
[12,null,null,null,null,null,null,null,null,null,null,null,null,null,null,null,null,null,null,24]
[null,null,null,null,"Total 12 cibles",null,null,null,null,null,null,null,null,null,null,null,null,null,null,null,null,null,null,"Total 12 cibles"]

{"sheet":"LISTE","index":1,"n_rows":96,"n_cols":14,"rows_kept":96,"cut":false,"hidden":false,"merged":[]}
["Horodateur","Nom (Majuscule) :","Prénom (Minuscule) :","Commune du club / Compagnie","Nom du Club / Compagnie","Numéro de Licence","Catégorie","Type d'arc","e-mail","Demandes particulières","Catégorie d'age","Genre","PELOTON","Paiement"]
[null,"GOUY","Aline","Massy","Archers de Massy","123456D","Senior Femme","Classique / Recurve",null,null,{"$f":"IF($G2=\"Benjamin Femme\",\"Benjamin\",IF($G2=\"Benjamin Homme\",\"Benjamin\",IF($G2=\"Minime Femme\",\"Minime\",IF($G2=\"Minime homme\",\"Minime\",IF($G2=\"Cadet Femme\",\"Cadet\",IF($G2=\"Cadet Homme\",\"Cadet\",IF($G2=\"Junior Femme\",\"Junior\",IF($G2=\"Junior Homme\",\"Junior\",IF($G2=\"Senior Femme\",\"Senior\",IF($G2=\"Senior Homme\",\"Senior\",IF($G2=\"Vétéran Femme\",\"Vétéran\",IF($G2=\"Vétéran Homme\",\"Vétéran\",IF($G2=\"Super Vétéran Femme\",\"Super Vétéran\",\"Super Vétéran\")))))))))))))","v":"Senior"},{"$f":"IF($G2=\"Benjamin Femme\",\"Femme\",IF($G2=\"Benjamin Homme\",\"Homme\",IF($G2=\"Minime Femme\",\"Femme\",IF($G2=\"Minime homme\",\"Homme\",IF($G2=\"Cadet Femme\",\"Femme\",IF($G2=\"Cadet Homme\",\"Homme\",IF($G2=\"Junior Femme\",\"Femme\",IF($G2=\"Junior Homme\",\"Homme\",IF($G2=\"Senior Femme\",\"Femme\",IF($G2=\"Senior Homme\",\"Homme\",IF($G2=\"Vétéran Femme\",\"Femme\",IF($G2=\"Vétéran Homme\",\"Homme\",IF($G2=\"Super Vétéran Femme\",\"Femme\",\"Homme\")))))))))))))","v":"Femme"},"1A"]
[null,"SERVEILLE","Didier","Massy","Archers de Massy","654321A","Senior Homme","Classique / Recurve",null,null,"Senior","Homme","1B"]
[null,"TARRISSE","Aurore","Eybens","Archers du château d'Eybens","987654A","Senior Femme","Poulie / Copound",null,null,"Senior","Femme","1C"]
[null,"WEINGAERTNER","Mathieu","Eybens","Archers du château d'Eybens","456789M","Senior Homme","Classique / Recurve",null,null,"Senior","Homme","1D"]
[null,null,null,null,null,null,null,null,null,null,"Super Vétéran","Homme"]
[null,null,null,null,null,null,null,null,null,null,"Super Vétéran","Homme"]
[null,null,null,null,null,null,null,null,null,null,"Super Vétéran","Homme"]
[null,null,null,null,null,null,null,null,null,null,"Super Vétéran","Homme"]
[null,null,null,null,null,null,null,null,null,null,"Super Vétéran","Homme"]
[null,null,null,null,null,null,null,null,null,null,"Super Vétéran","Homme"]
[null,null,null,null,null,null,null,null,null,null,"Super Vétéran","Homme"]
[null,null,null,null,null,null,null,null,null,null,"Super Vétéran","Homme"]
[null,null,null,null,null,null,null,null,null,null,"Super Vétéran","Homme"]
[null,null,null,null,null,null,null,null,null,null,"Super Vétéran","Homme"]
[null,null,null,null,null,null,null,null,null,null,"Super Vétéran","Homme"]
[null,null,null,null,null,null,null,null,null,null,"Super Vétéran","Homme"]
[null,null,null,null,null,null,null,null,null,null,"Super Vétéran","Homme"]
[null,null,null,null,null,null,null,null,null,null,"Super Vétéran","Homme"]
[null,null,null,null,null,null,null,null,null,null,"Super Vétéran","Homme"]
[null,null,null,null,null,null,null,null,null,null,"Super Vétéran","Homme"]
[null,null,null,null,null,null,null,null,null,null,"Super Vétéran","Homme"]
[null,null,null,null,null,null,null,null,null,null,"Super Vétéran","Homme"]
[null,null,null,null,null,null,null,null,null,null,"Super Vétéran","Homme"]
[null,null,null,null,null,null,null,null,null,null,"Super Vétéran","Homme"]
[null,null,null,null,null,null,null,null,null,null,"Super Vétéran","Homme"]
[null,null,null,null,null,null,null,null,null,null,"Super Vétéran","Homme"]
[null,null,null,null,null,null,null,null,null,null,"Super Vétéran","Homme"]
[null,null,null,null,null,null,null,null,null,null,"Super Vétéran","Homme"]
[null,null,null,null,null,null,null,null,null,null,"Super Vétéran","Homme"]
[null,null,null,null,null,null,null,null,null,null,"Super Vétéran","Homme"]
[null,null,null,null,null,null,null,null,null,null,"Super Vétéran","Homme"]
[null,null,null,null,null,null,null,null,null,null,"Super Vétéran","Homme"]
[null,null,null,null,null,null,null,null,null,null,{"$f":"IF($G34=\"Benjamin Femme\",\"Benjamin\",IF($G34=\"Benjamin Homme\",\"Benjamin\",IF($G34=\"Minime Femme\",\"Minime\",IF($G34=\"Minime homme\",\"Minime\",IF($G34=\"Cadet Femme\",\"Cadet\",IF($G34=\"Cadet Homme\",\"Cadet\",IF($G34=\"Junior Femme\",\"Junior\",IF($G34=\"Junior Homme\",\"Junior\",IF($G34=\"Senior Femme\",\"Senior\",IF($G34=\"Senior Homme\",\"Senior\",IF($G34=\"Vétéran Femme\",\"Vétéran\",IF($G34=\"Vétéran Homme\",\"Vétéran\",IF($G34=\"Super Vétéran Femme\",\"Super Vétéran\",\"Super Vétéran\")))))))))))))","v":"Super Vétéran"},{"$f":"IF($G34=\"Benjamin Femme\",\"Femme\",IF($G34=\"Benjamin Homme\",\"Homme\",IF($G34=\"Minime Femme\",\"Femme\",IF($G34=\"Minime homme\",\"Homme\",IF($G34=\"Cadet Femme\",\"Femme\",IF($G34=\"Cadet Homme\",\"Homme\",IF($G34=\"Junior Femme\",\"Femme\",IF($G34=\"Junior Homme\",\"Homme\",IF($G34=\"Senior Femme\",\"Femme\",IF($G34=\"Senior Homme\",\"Homme\",IF($G34=\"Vétéran Femme\",\"Femme\",IF($G34=\"Vétéran Homme\",\"Homme\",IF($G34=\"Super Vétéran Femme\",\"Femme\",\"Homme\")))))))))))))","v":"Homme"}]
[null,null,null,null,null,null,null,null,null,null,"Super Vétéran","Homme"]
[null,null,null,null,null,null,null,null,null,null,"Super Vétéran","Homme"]
[null,null,null,null,null,null,null,null,null,null,"Super Vétéran","Homme"]
[null,null,null,null,null,null,null,null,null,null,"Super Vétéran","Homme"]
[null,null,null,null,null,null,null,null,null,null,"Super Vétéran","Homme"]
[null,null,null,null,null,null,null,null,null,null,"Super Vétéran","Homme"]
[null,null,null,null,null,null,null,null,null,null,"Super Vétéran","Homme"]
[null,null,null,null,null,null,null,null,null,null,"Super Vétéran","Homme"]
[null,null,null,null,null,null,null,null,null,null,"Super Vétéran","Homme"]
[null,null,null,null,null,null,null,null,null,null,"Super Vétéran","Homme"]
[null,null,null,null,null,null,null,null,null,null,"Super Vétéran","Homme"]
[null,null,null,null,null,null,null,null,null,null,"Super Vétéran","Homme"]
[null,null,null,null,null,null,null,null,null,null,"Super Vétéran","Homme"]
[null,null,null,null,null,null,null,null,null,null,"Super Vétéran","Homme"]
[null,null,null,null,null,null,null,null,null,null,"Super Vétéran","Homme"]
[null,null,null,null,null,null,null,null,null,null,"Super Vétéran","Homme"]
[null,null,null,null,null,null,null,null,null,null,"Super Vétéran","Homme"]
[null,null,null,null,null,null,null,null,null,null,"Super Vétéran","Homme"]
[null,null,null,null,null,null,null,null,null,null,"Super Vétéran","Homme"]
[null,null,null,null,null,null,null,null,null,null,"Super Vétéran","Homme"]
[null,null,null,null,null,null,null,null,null,null,"Super Vétéran","Homme"]
[null,null,null,null,null,null,null,null,null,null,"Super Vétéran","Homme"]
[null,null,null,null,null,null,null,null,null,null,"Super Vétéran","Homme"]
[null,null,null,null,null,null,null,null,null,null,"Super Vétéran","Homme"]
[null,null,null,null,null,null,null,null,null,null,"Super Vétéran","Homme"]
[null,null,null,null,null,null,null,null,null,null,"Super Vétéran","Homme"]
[null,null,null,null,null,null,null,null,null,null,"Super Vétéran","Homme"]
[null,null,null,null,null,null,null,null,null,null,"Super Vétéran","Homme"]
[null,null,null,null,null,null,null,null,null,null,"Super Vétéran","Homme"]
[null,null,null,null,null,null,null,null,null,null,"Super Vétéran","Homme"]
[null,null,null,null,null,null,null,null,null,null,"Super Vétéran","Homme"]
[null,null,null,null,null,null,null,null,null,null,{"$f":"IF($G66=\"Benjamin Femme\",\"Benjamin\",IF($G66=\"Benjamin Homme\",\"Benjamin\",IF($G66=\"Minime Femme\",\"Minime\",IF($G66=\"Minime homme\",\"Minime\",IF($G66=\"Cadet Femme\",\"Cadet\",IF($G66=\"Cadet Homme\",\"Cadet\",IF($G66=\"Junior Femme\",\"Junior\",IF($G66=\"Junior Homme\",\"Junior\",IF($G66=\"Senior Femme\",\"Senior\",IF($G66=\"Senior Homme\",\"Senior\",IF($G66=\"Vétéran Femme\",\"Vétéran\",IF($G66=\"Vétéran Homme\",\"Vétéran\",IF($G66=\"Super Vétéran Femme\",\"Super Vétéran\",\"Super Vétéran\")))))))))))))","v":"Super Vétéran"},{"$f":"IF($G66=\"Benjamin Femme\",\"Femme\",IF($G66=\"Benjamin Homme\",\"Homme\",IF($G66=\"Minime Femme\",\"Femme\",IF($G66=\"Minime homme\",\"Homme\",IF($G66=\"Cadet Femme\",\"Femme\",IF($G66=\"Cadet Homme\",\"Homme\",IF($G66=\"Junior Femme\",\"Femme\",IF($G66=\"Junior Homme\",\"Homme\",IF($G66=\"Senior Femme\",\"Femme\",IF($G66=\"Senior Homme\",\"Homme\",IF($G66=\"Vétéran Femme\",\"Femme\",IF($G66=\"Vétéran Homme\",\"Homme\",IF($G66=\"Super Vétéran Femme\",\"Femme\",\"Homme\")))))))))))))","v":"Homme"}]
[null,null,null,null,null,null,null,null,null,null,"Super Vétéran","Homme"]
[null,null,null,null,null,null,null,null,null,null,"Super Vétéran","Homme"]
[null,null,null,null,null,null,null,null,null,null,"Super Vétéran","Homme"]
[null,null,null,null,null,null,null,null,null,null,"Super Vétéran","Homme"]
[null,null,null,null,null,null,null,null,null,null,"Super Vétéran","Homme"]
[null,null,null,null,null,null,null,null,null,null,"Super Vétéran","Homme"]
[null,null,null,null,null,null,null,null,null,null,"Super Vétéran","Homme"]
[null,null,null,null,null,null,null,null,null,null,"Super Vétéran","Homme"]
[null,null,null,null,null,null,null,null,null,null,"Super Vétéran","Homme"]
[null,null,null,null,null,null,null,null,null,null,"Super Vétéran","Homme"]
[null,null,null,null,null,null,null,null,null,null,"Super Vétéran","Homme"]
[null,null,null,null,null,null,null,null,null,null,"Super Vétéran","Homme"]
[null,null,null,null,null,null,null,null,null,null,"Super Vétéran","Homme"]
[null,null,null,null,null,null,null,null,null,null,"Super Vétéran","Homme"]
[null,null,null,null,null,null,null,null,null,null,"Super Vétéran","Homme"]
[null,null,null,null,null,null,null,null,null,null,"Super Vétéran","Homme"]
[null,null,null,null,null,null,null,null,null,null,"Super Vétéran","Homme"]
[null,null,null,null,null,null,null,null,null,null,"Super Vétéran","Homme"]
[null,null,null,null,null,null,null,null,null,null,"Super Vétéran","Homme"]
[null,null,null,null,null,null,null,null,null,null,"Super Vétéran","Homme"]
[null,null,null,null,null,null,null,null,null,null,"Super Vétéran","Homme"]
[null,null,null,null,null,null,null,null,null,null,"Super Vétéran","Homme"]
[null,null,null,null,null,null,null,null,null,null,"Super Vétéran","Homme"]
[null,null,null,null,null,null,null,null,null,null,"Super Vétéran","Homme"]
[null,null,null,null,null,null,null,null,null,null,"Super Vétéran","Homme"]
[null,null,null,null,null,null,null,null,null,null,"Super Vétéran","Homme"]
[null,null,null,null,null,null,null,null,null,null,"Super Vétéran","Homme"]
[null,null,null,null,null,null,null,null,null,null,"Super Vétéran","Homme"]
[null,null,null,null,null,null,null,null,null,null,"Super Vétéran","Homme"]
[null,null,null,null,null,null,null,null,null,null,"Super Vétéran","Homme"]